bitfinex/quotes_BTCUSD_20220306
["timestamp","ask_amount","ask_price","bid_price","bid_amount"]
[1646583048053,0.0032,38924.0,38923.0,0.41082997]
[1646583049055,0.0032,38924.0,38923.0,0.41082964]
[1646583050107,0.0032,38924.0,38923.0,0.71082964]
[1646583050306,0.0032,38924.0,38923.0,0.385126]
[1646583050507,0.0032,38924.0,38923.0,0.41082633]
[1646583051007,0.0011,38927.0,38924.0,1.1]
[1646583051210,0.0011,38927.0,38924.0,1.42426139]
[1646583051405,0.0011,38927.0,38924.0,1.13400603]
[1646583051806,0.00121372,38926.0,38924.0,1.13400603]
[1646583052106,0.0021,38928.0,38925.0,0.385104]
[1646583052107,0.001,38928.0,38925.0,0.385104]
[1646583052307,0.001,38928.0,38927.0,0.02184707]
[1646583052505,0.00215476,38934.0,38928.0,1.1]
[1646583052709,0.00215476,38934.0,38932.0,0.00025697]
[1646583052905,0.00215476,38934.0,38933.0,0.00025697]
[1646583053308,0.00215476,38934.0,38933.0,0.00855597]
[1646583056155,0.00215476,38934.0,38933.0,0.21133644]
[1646583056555,0.00215476,38934.0,38933.0,0.52284527]
[1646583056755,0.00215476,38934.0,38933.0,0.22284527]
[1646583056956,0.00215476,38934.0,38933.0,0.21133644]
[1646583058798,0.00215476,38934.0,38933.0,0.00855597]
[1646583059399,0.00215476,38934.0,38933.0,0.01887379]
[1646583059600,0.00215476,38934.0,38933.0,0.22186111]
[1646583059802,0.00215476,38934.0,38933.0,0.01887379]
[1646583064751,0.00215476,38934.0,38933.0,0.00855597]
[1646583066106,0.00215476,38934.0,38933.0,0.00025697]
[1646583066303,0.45365476,38934.0,38933.0,0.00025697]
[1646583067100,0.51792179,38934.0,38933.0,0.00025697]
[1646583067499,0.58218979,38934.0,38933.0,0.00025697]
[1646583068501,0.63802002,38934.0,38933.0,0.00025697]
[1646583069164,0.58218979,38934.0,38933.0,0.00025697]
[1646583070167,0.63942278,38934.0,38933.0,0.00025697]
[1646583070973,0.064288,38929.0,38926.0,0.00021027]
[1646583071167,0.3515,38928.0,38926.0,0.00021027]
[1646583071367,0.3,38927.0,38926.0,0.00021027]
[1646583071566,0.0515,38927.0,38926.0,0.00021027]
[1646583071766,0.0515,38927.0,38920.0,0.9004837]
[1646583071967,0.0515,38927.0,38925.0,0.00021026]
[1646583072167,0.064282,38926.0,38925.0,0.00021026]
[1646583072370,0.2443455,38926.0,38925.0,0.11241993]
[1646583072802,0.2443455,38926.0,38925.0,0.49793293]
[1646583072999,0.180064,38926.0,38925.0,0.49772267]
[1646583073602,0.180064,38926.0,38925.0,0.11211947]
[1646583073800,0.180064,38926.0,38925.0,0.49763247]
[1646583075904,0.0515,38926.0,38925.0,0.49763247]
[1646583076110,0.004,38929.0,38925.0,0.97664419]
[1646583076363,0.004,38929.0,38928.0,0.000257]
[1646583076674,0.00215476,38934.0,38928.0,0.000257]
[1646583076861,0.00236521,38934.0,38926.0,0.007898]
[1646583077060,0.00236521,38934.0,38929.0,0.19487257]
[1646583077262,0.00236521,38934.0,38930.0,0.68546]
[1646583077462,0.00236521,38934.0,38931.0,0.06425]
[1646583077664,0.00236521,38934.0,38932.0,0.007889]
[1646583077863,0.00215476,38934.0,38932.0,0.007889]
[1646583078062,0.00236495,38934.0,38932.0,0.307889]
[1646583078463,0.00236495,38934.0,38932.0,0.007889]
[1646583078667,0.00236495,38934.0,38933.0,0.00025697]
[1646583079063,0.00236495,38934.0,38933.0,0.68568597]
[1646583079064,0.00215476,38934.0,38933.0,0.68568597]
[1646583081510,0.001,38939.0,38935.0,0.007886]
[1646583081511,0.03936495,38936.0,38935.0,0.007886]
[1646583081911,0.03936495,38936.0,38935.0,0.00814289]
[1646583082313,0.03936495,38936.0,38935.0,0.19464246]
[1646583082514,0.03936495,38936.0,38935.0,0.25888946]
[1646583083115,0.03936495,38936.0,38935.0,0.00814289]
[1646583083948,0.03936495,38936.0,38935.0,0.01985944]
[1646583084149,0.03936495,38936.0,38935.0,0.00814289]
[1646583084848,0.03936495,38936.0,38935.0,0.21346582]
[1646583090310,0.03936495,38936.0,38935.0,0.22556669]
[1646583090504,0.03936495,38936.0,38935.0,0.28980769]
[1646583091105,0.03736495,38936.0,38935.0,0.28980769]
[1646583091590,0.18133087,38945.0,38937.0,2.02924513]
[1646583091773,0.18133087,38945.0,38941.0,0.00025687]
[1646583091964,0.18133087,38945.0,38944.0,0.00025687]
[1646583092165,0.001,38948.0,38944.0,0.00812987]
[1646583092369,0.0032,38950.0,38947.0,0.0257]
[1646583092370,0.001,38949.0,38947.0,0.0257]
[1646583092565,0.001,38949.0,38948.0,0.8216258]
[1646583092767,0.001,38949.0,38948.0,1.2216258]
[1646583093166,0.001,38949.0,38948.0,0.4338258]
[1646583093366,0.001,38949.0,38948.0,1.2216258]
[1646583093567,0.001,38949.0,38948.0,1.35576231]
[1646583093767,0.001,38950.0,38949.0,1.9135]
[1646583093970,0.001,38950.0,38949.0,2.2990158]
[1646583094172,0.0011,38953.0,38950.0,0.007866]
[1646583094367,0.0011,38953.0,38952.0,0.0002568]
[1646583094568,0.0011,38953.0,38952.0,3.0173231]
[1646583094768,0.0011,38953.0,38952.0,3.1173231]
[1646583094968,0.00122503,38953.0,38952.0,3.1173231]
[1646583095202,0.00050003,38959.0,38952.0,3.27473817]
[1646583095401,0.00050003,38959.0,38956.0,0.1118626]
[1646583095606,0.00050003,38959.0,38957.0,0.4197216]
[1646583095801,0.0021,38965.0,38957.0,0.5197216]
[1646583096807,0.0021,38965.0,38957.0,0.407859]
[1646583097004,0.0021,38965.0,38957.0,0.40811576]
[1646583098206,0.0021,38965.0,38957.0,1.22161576]
[1646583098509,0.0021,38965.0,38960.0,0.44932593]
[1646583098704,0.0021,38965.0,38963.0,0.00025669]
[1646583099151,0.04,38972.0,38964.0,1.1]
[1646583099360,0.001,38973.0,38968.0,0.064177]
[1646583099554,0.001,38973.0,38972.0,0.00025661]
[1646583099752,0.0011,38985.0,38974.0,0.384992]
[1646583100051,0.0011,38985.0,38976.0,0.00809261]
[1646583100459,0.175,38994.0,38976.0,0.00809261]
[1646583100460,0.01809362,39012.0,38978.0,1.1]
[1646583100662,0.5,39013.0,39002.0,0.15]
[1646583100861,0.20950918,39024.0,39006.0,0.00025641]
[1646583101067,0.25,39034.0,39006.0,0.00025641]
[1646583101068,0.03905086,39031.0,39008.0,1.2489]
[1646583101255,0.13156464,39038.0,39012.0,1.1]
[1646583101256,0.0011,39033.0,39012.0,1.1]
[1646583101455,0.13156464,39038.0,39027.0,0.19659141]
[1646583101656,0.03806276,39051.0,39031.0,0.1118626]
[1646583101880,0.51327552,39065.0,39039.0,0.15]
[1646583101881,0.12817679,39064.0,39039.0,0.15]
[1646583102058,0.06865705,39082.0,39058.0,1.1]
[1646583102059,0.02381122,39076.0,39058.0,1.1]
[1646583102258,0.84404694,39075.0,39062.0,0.00025595]
[1646583102467,0.02381122,39080.0,39062.0,0.00025595]
[1646583102468,0.02381122,39080.0,39064.0,0.15]
[1646583102710,0.02381122,39080.0,39063.0,0.26942965]
[1646583102711,0.0999,39068.0,39065.0,0.059196]
[1646583102908,0.00381122,39080.0,39067.0,0.1118626]
[1646583103110,9.2e-05,39086.0,39067.0,0.01638068]
[1646583103111,0.385513,39085.0,39067.0,0.01638068]
[1646583103306,9.2e-05,39086.0,39069.0,0.01502901]
[1646583103506,9.2e-05,39086.0,39058.0,0.003]
[1646583103507,0.16517915,39066.0,39058.0,0.003]
[1646583103712,9.2e-05,39086.0,39071.0,0.06577134]
[1646583103908,0.00082987,39096.0,39071.0,0.06577134]
[1646583103909,0.21454525,39099.0,39074.0,0.14681]
[1646583104109,0.21454525,39099.0,39072.0,0.736881]
[1646583104110,0.84404694,39098.0,39089.0,0.17207826]
[1646583104309,0.179741,39101.0,39090.0,0.535513]
[1646583104515,0.379741,39101.0,39095.0,0.12412]
[1646583104708,6e-05,39109.0,39091.0,0.3]
[1646583104709,6e-05,39109.0,39099.0,0.12412]
[1646583104916,6e-05,39109.0,39097.0,0.45]
[1646583104917,0.00645703,39135.0,39108.0,0.12412]
[1646583105110,0.16792481,39153.0,39108.0,0.12412]
[1646583105111,5.05506695,39148.0,39133.0,0.12066824]
[1646583105309,5.05506695,39148.0,39132.0,0.01451788]
[1646583105310,0.01903555,39133.0,39132.0,0.01451788]
[1646583105513,0.01903555,39133.0,39123.0,0.15237994]
[1646583105709,0.30917605,39147.0,39133.0,1.1]
[1646583105710,0.3,39147.0,39133.0,1.1]
[1646583105907,3.50372701,39148.0,39131.0,0.1]
[1646583105908,3.44468209,39148.0,39141.0,0.371961]
[1646583106118,3.44468209,39148.0,39127.0,0.3]
[1646583106119,0.73069133,39148.0,39127.0,0.3]
[1646583106365,0.28457446,39148.0,39140.0,0.10494824]
[1646583106572,0.28457446,39148.0,39120.0,0.12779274]
[1646583106573,0.28457446,39148.0,39144.0,0.1018626]
[1646583106768,0.28457446,39148.0,39133.0,0.11355533]
[1646583106769,0.28457446,39148.0,39134.0,0.3]
[1646583106967,0.28457446,39148.0,39133.0,0.01355533]
[1646583107172,0.28457446,39148.0,39128.0,2.3318373]
[1646583107173,0.50320186,39147.0,39128.0,2.3318373]
[1646583107467,0.50320186,39147.0,39114.0,0.4696]
[1646583107468,0.04505176,39131.0,39114.0,0.4696]
[1646583107669,0.28457446,39148.0,39114.0,0.4696]
[1646583107672,0.32962622,39148.0,39120.0,0.2499999]
[1646583107868,0.04505176,39143.0,39121.0,0.3515]
[1646583108067,0.0541523,39131.0,39121.0,0.31391799]
[1646583108268,0.0541523,39131.0,39108.0,0.0255]
[1646583108269,0.0541523,39131.0,39118.0,0.2]
[1646583108469,0.0541523,39131.0,39095.0,0.06394191]
[1646583108470,0.04505176,39119.0,39091.0,0.4576]
[1646583108672,0.3515,39130.0,39091.0,0.46820803]
[1646583108673,0.15514828,39094.0,39091.0,0.46820803]
[1646583108870,0.29918,39107.0,39100.0,0.31029655]
[1646583109070,0.0515,39106.0,39100.0,0.31029655]
[1646583109269,0.3515,39105.0,39100.0,0.31029655]
[1646583109471,0.3515,39105.0,39088.0,0.01206685]
[1646583109472,0.0515,39105.0,39088.0,0.01206685]
[1646583109776,0.1632198,39122.0,39088.0,0.01206685]
[1646583109777,0.1,39123.0,39090.0,0.56145785]
[1646583109970,0.1,39123.0,39077.0,0.0515]
[1646583109971,0.48576559,39133.0,39109.0,0.56145785]
[1646583110210,0.48576559,39133.0,39096.0,2.00807536]
[1646583110211,0.76686,39131.0,39124.0,0.11925346]
[1646583110409,8.69e-05,39147.0,39133.0,0.24082395]
[1646583110613,0.00449,39150.0,39133.0,0.24082395]
[1646583110617,0.0025,39150.0,39137.0,0.36007741]
[1646583110911,0.0025,39150.0,39136.0,1.3]
[1646583110912,0.07191439,39176.0,39149.0,0.11925346]
[1646583111114,0.07191439,39176.0,39162.0,0.52572771]
[1646583111322,0.04059362,39176.0,39167.0,0.09834496]
[1646583111514,0.03712654,39193.0,39167.0,0.09834496]
[1646583111515,0.03531642,39202.0,39176.0,1.1]
[1646583111722,0.21836877,39202.0,39199.0,0.2499]
[1646583111910,0.21836877,39202.0,39201.0,0.1018626]
[1646583111911,0.01031642,39202.0,39201.0,0.1018626]
[1646583112114,6.42e-06,39202.0,39201.0,0.4018626]
[1646583112314,0.00964766,39208.0,39198.0,0.3]
[1646583112517,0.3,39215.0,39198.0,0.55645785]
[1646583112711,0.03074654,39209.0,39197.0,0.4998]
[1646583112911,0.59429565,39210.0,39167.0,0.09334496]
[1646583112912,0.03074654,39198.0,39167.0,0.09334496]
[1646583113111,0.03074654,39198.0,39180.0,0.2499999]
[1646583113112,0.03074654,39192.0,39180.0,0.2499999]
[1646583113315,0.01393732,39209.0,39163.0,0.1]
[1646583113316,0.03074654,39184.0,39163.0,0.1]
[1646583113514,0.04352575,39186.0,39163.0,0.65645785]
[1646583113713,0.6437,39188.0,39164.0,0.684964]
[1646583113714,0.17399558,39183.0,39164.0,0.684964]
[1646583113970,0.025,39188.0,39168.0,1.1]
[1646583113971,0.0011,39171.0,39168.0,1.1]
[1646583114172,0.00021527,39175.0,39165.0,0.384964]
[1646583114369,0.00021527,39175.0,39163.0,0.1]
[1646583114370,0.384964,39173.0,39163.0,0.1]
[1646583114574,0.384964,39163.0,39158.0,0.005]
[1646583114777,0.0515,39162.0,39158.0,0.005]
[1646583114977,0.00021527,39175.0,39159.0,0.384964]
[1646583115172,0.3,39183.0,39159.0,0.384964]
[1646583115372,0.654,39190.0,39159.0,0.384964]
[1646583115373,0.0002153,39162.0,39159.0,0.384964]
[1646583115574,0.0002153,39162.0,39160.0,0.01379518]
[1646583115776,0.0002153,39162.0,39161.0,0.534964]
[1646583115973,0.00409003,39168.0,39161.0,1.39142185]
[1646583115974,1.533e-05,39168.0,39161.0,1.39142185]
[1646583116178,0.48828409,39207.0,39167.0,0.16091698]
[1646583116179,0.4716,39207.0,39167.0,0.16091698]
[1646583116378,0.4716,39207.0,39175.0,0.94142185]
[1646583116379,0.025,39207.0,39175.0,0.94142185]
[1646583116579,0.047,39206.0,39191.0,0.384964]
[1646583116775,0.00028159,39221.0,39191.0,0.384964]
[1646583116776,0.00028159,39221.0,39192.0,0.3]
[1646583116977,0.00028159,39221.0,39199.0,0.15]
[1646583117177,0.00028159,39221.0,39200.0,0.684964]
[1646583117373,0.00028159,39221.0,39200.0,0.69859665]
[1646583117640,0.06453092,39216.0,39200.0,0.45944665]
[1646583117836,0.28274078,39216.0,39200.0,0.45944665]
[1646583118035,0.06453092,39216.0,39200.0,0.45944665]
[1646583118238,0.06453092,39216.0,39201.0,0.15]
[1646583118239,0.01753092,39216.0,39201.0,0.15]
[1646583118438,0.01753092,39216.0,39204.0,0.15]
[1646583118636,0.01753092,39216.0,39205.0,0.39396933]
[1646583118839,0.384964,39213.0,39205.0,0.00900533]
[1646583119139,0.384964,39213.0,39183.0,3.03375727]
[1646583119140,0.21531164,39201.0,39190.0,0.3]
[1646583119336,0.047,39200.0,39189.0,0.00940427]
[1646583119535,0.047,39199.0,39184.0,0.31138282]
[1646583119737,0.0011,39204.0,39199.0,0.336513]
[1646583119939,0.047,39203.0,39186.0,0.3]
[1646583120148,0.384903,39202.0,39177.0,0.01274]
[1646583120343,0.1,39190.0,39167.0,0.01274]
[1646583120643,0.025,39202.0,39171.0,0.15]
[1646583120644,0.047,39189.0,39171.0,0.15]
[1646583120843,0.00419745,39200.0,39183.0,0.15]
[1646583121041,0.00419745,39200.0,39186.0,0.336927]
[1646583121244,0.00419745,39200.0,39191.0,0.384716]
[1646583121457,0.00419745,39200.0,39195.0,0.336845]
[1646583121658,7.45e-06,39200.0,39197.0,0.384653]
[1646583121862,0.2092052,39215.0,39199.0,0.49813614]
[1646583122057,0.06453092,39216.0,39202.0,0.336772]
[1646583122257,0.06453092,39216.0,39197.0,0.33043]
[1646583122258,0.047,39213.0,39206.0,0.02551769]
[1646583122456,0.047,39213.0,39199.0,0.384877]
[1646583122665,0.047,39213.0,39192.0,0.005]
[1646583122666,0.06475579,39205.0,39192.0,0.005]
[1646583122959,0.047,39204.0,39193.0,0.384877]
[1646583123158,0.047,39206.0,39193.0,0.384877]
[1646583123354,0.047,39206.0,39193.0,0.39647556]
[1646583123558,0.047,39206.0,39194.0,0.35]
[1646583123754,0.047,39206.0,39195.0,0.33167]
[1646583123953,0.00012051,39202.0,39195.0,0.33167]
[1646583124157,0.1691164,39199.0,39195.0,0.33167]
[1646583124356,0.047,39198.0,39187.0,0.01274]
[1646583124558,0.047,39198.0,39188.0,0.285703]
[1646583124756,0.047,39198.0,39173.0,0.51274]
[1646583124757,0.047,39198.0,39180.0,0.00774]
[1646583124769,0.84470691,39197.0,39180.0,0.00774]
[1646583124957,0.84470691,39197.0,39176.0,0.01274]
[1646583124958,0.20242573,39181.0,39176.0,0.01274]
[1646583125239,0.20242573,39181.0,39172.0,0.0002293]
[1646583125240,0.047,39180.0,39172.0,0.0002293]
[1646583125440,0.3,39179.0,39172.0,0.0002293]
[1646583125636,0.5881,39176.0,39172.0,0.0002293]
[1646583125939,0.1553021,39181.0,39156.0,0.01276]
[1646583125940,0.5731,39173.0,39156.0,0.01276]
[1646583126239,0.5731,39173.0,39137.0,0.15]
[1646583126240,0.20375306,39160.0,39149.0,0.01276]
[1646583126436,0.20375306,39160.0,39134.0,0.45968764]
[1646583126437,0.20375306,39160.0,39144.0,0.01276]
[1646583126441,0.347,39159.0,39144.0,0.01276]
[1646583126635,0.347,39159.0,39143.0,0.4639]
[1646583126636,0.9351,39159.0,39143.0,0.4639]
[1646583126835,0.9351,39159.0,39136.0,0.01277]
[1646583126836,0.1,39158.0,39137.0,0.384937]
[1646583127137,0.08087,39185.0,39130.0,0.4947]
[1646583127138,0.5881,39166.0,39155.0,0.15]
[1646583127335,0.047,39165.0,39161.0,0.026475]
[1646583127539,0.047,39176.0,39155.0,0.31156771]
[1646583127743,0.047,39176.0,39139.0,0.4886]
[1646583127744,0.06458458,39167.0,39147.0,0.3]
[1646583127940,0.19137195,39159.0,39144.0,0.15]
[1646583128136,0.047,39158.0,39150.0,0.384798]
[1646583128337,0.047,39158.0,39150.0,0.364798]
[1646583128536,0.1766935,39156.0,39152.0,0.00022928]
[1646583128738,0.001,39173.0,39158.0,0.25]
[1646583128739,0.047,39164.0,39158.0,0.25]
[1646583128957,0.001,39173.0,39167.0,0.195]
[1646583129155,0.001,39173.0,39159.0,0.3]
[1646583129156,0.001,39173.0,39168.0,0.37785013]
[1646583129355,0.001,39173.0,39135.0,4.55401048]
[1646583129356,0.047,39172.0,39157.0,0.15]
[1646583129557,0.047,39172.0,39154.0,0.364736]
[1646583129558,0.19785022,39164.0,39158.0,0.364707]
[1646583129756,0.19785022,39164.0,39159.0,0.364702]
[1646583129757,0.24485022,39164.0,39159.0,0.364702]
[1646583129961,0.05833614,39151.0,39148.0,0.003]
[1646583130263,0.3,39163.0,39142.0,0.01277]
[1646583130264,0.0527084,39145.0,39142.0,0.01277]
[1646583130457,0.5881,39162.0,39131.0,0.01277]
[1646583130458,0.38507,39143.0,39131.0,0.01277]
[1646583130656,0.38507,39143.0,39124.0,0.4897]
[1646583130657,0.40619313,39143.0,39133.0,0.374984]
[1646583130857,0.1,39150.0,39133.0,0.374984]
[1646583131059,0.047,39149.0,39133.0,0.374984]
[1646583131256,0.047,39149.0,39137.0,0.374937]
[1646583131257,0.347,39149.0,39137.0,0.374937]
[1646583131458,0.36280866,39148.0,39137.0,0.374937]
[1646583131658,0.047,39147.0,39129.0,0.01277]
[1646583131858,0.18525118,39138.0,39124.0,0.50247]
[1646583132062,0.3,39155.0,39127.0,0.15]
[1646583132266,0.1,39148.0,39141.0,0.00022051]
[1646583132457,0.3,39147.0,39141.0,0.00022051]
[1646583132718,0.06399031,39146.0,39141.0,0.00022051]
[1646583132918,0.385107,39145.0,39141.0,0.00022051]
[1646583133113,0.20236026,39144.0,39125.0,0.3]
[1646583133316,0.005007,39145.0,39126.0,0.525057]
[1646583133521,0.005007,39145.0,39136.0,0.15]
[1646583133819,0.005035,39152.0,39140.0,0.15]
[1646583134014,0.0429,39156.0,39140.0,0.15]
[1646583134015,0.005064,39154.0,39145.0,0.15]
[1646583134217,0.22141522,39155.0,39149.0,0.15]
[1646583134616,0.22141522,39155.0,39150.0,0.374795]
[1646583134816,0.21141522,39155.0,39150.0,0.374795]
[1646583135015,0.01050205,39155.0,39150.0,0.374795]
[1646583135422,0.005122,39170.0,39154.0,1.474752]
[1646583135627,0.063889,39182.0,39162.0,0.14848962]
[1646583135818,0.063889,39182.0,39163.0,0.674638]
[1646583136017,0.15765033,39164.0,39162.0,0.14848962]
[1646583136217,0.063889,39182.0,39163.0,0.374638]
[1646583136456,0.06588233,39177.0,39163.0,0.14848962]
[1646583136655,0.063889,39182.0,39160.0,0.002]
[1646583136857,0.088889,39182.0,39161.0,0.374659]
[1646583137055,0.001,39184.0,39170.0,0.0002208]
[1646583137056,0.0033109,39183.0,39170.0,0.0002208]
[1646583137258,0.385107,39182.0,39170.0,0.0002208]
[1646583137456,0.00151038,39175.0,39147.0,0.21372567]
[1646583137658,0.00151038,39175.0,39146.0,0.4886]
[1646583137662,0.06423387,39164.0,39146.0,0.4886]
[1646583137858,0.44354215,39172.0,39146.0,0.4886]
[1646583137859,0.3429,39163.0,39146.0,0.4886]
[1646583138058,0.15593766,39154.0,39146.0,0.4886]
[1646583138256,0.15593766,39154.0,39141.0,0.374879]
[1646583138458,0.15593766,39154.0,39145.0,0.007]
[1646583138757,0.3,39162.0,39147.0,0.14848962]
[1646583139058,0.1,39172.0,39146.0,0.374838]
[1646583139059,0.0429,39168.0,39152.0,0.374763]
[1646583139361,0.1,39172.0,39153.0,0.52345398]
[1646583139560,0.1,39172.0,39155.0,0.14848962]
[1646583139758,0.1,39172.0,39156.0,0.31276]
[1646583139957,0.095,39172.0,39156.0,0.687478]
[1646583140215,0.09,39172.0,39156.0,0.31276]
[1646583140421,0.05561568,39167.0,39156.0,0.01276]
[1646583140622,0.385107,39166.0,39162.0,0.00021334]
[1646583140819,0.19813386,39165.0,39162.0,0.00021334]
[1646583141016,0.385107,39164.0,39162.0,0.00021334]
[1646583141416,0.385107,39164.0,39153.0,0.005]
[1646583141417,1.05,39162.0,39153.0,1.334e-05]
[1646583141620,0.0429,39161.0,39143.0,0.14848962]
[1646583141821,0.0429,39161.0,39144.0,0.3]
[1646583142218,0.0429,39161.0,39138.0,0.3]
[1646583142220,0.1,39156.0,39138.0,0.3]
[1646583142419,0.16246587,39140.0,39136.0,0.31277]
[1646583142622,0.18992114,39143.0,39136.0,0.374954]
[1646583142816,0.385107,39154.0,39135.0,0.0418]
[1646583143015,0.0429,39153.0,39136.0,9.527e-05]
[1646583143220,0.485107,39152.0,39136.0,9.527e-05]
[1646583143416,0.0429,39151.0,39136.0,9.527e-05]
[1646583143616,0.16213242,39137.0,39136.0,9.527e-05]
[1646583143857,0.001,39144.0,39136.0,0.37505127]
[1646583144051,0.001,39144.0,39136.0,0.14848962]
[1646583144457,0.001,39144.0,39135.0,0.04201391]
[1646583144458,0.385107,39143.0,39135.0,0.04201391]
[1646583144654,0.685107,39142.0,39135.0,0.04201391]
[1646583144854,0.685107,39142.0,39122.0,0.001]
[1646583144855,0.21571831,39141.0,39123.0,0.01277]
[1646583145052,0.0429,39141.0,39122.0,0.001]
[1646583145256,0.0679,39141.0,39122.0,0.14948962]
[1646583145554,0.385107,39151.0,39123.0,0.45]
[1646583145755,0.44354215,39144.0,39123.0,0.45]
[1646583145953,0.19002024,39133.0,39123.0,0.45]
[1646583146152,0.19002024,39133.0,39123.0,0.15]
[1646583146351,0.19002024,39133.0,39124.0,0.3]
[1646583146555,0.19002024,39133.0,39122.0,0.001]
[1646583146755,0.385107,39132.0,39126.0,9.511e-05]
[1646583146953,0.20926742,39127.0,39126.0,9.511e-05]
[1646583147156,0.0429,39133.0,39112.0,1.78118044]
[1646583147360,0.3,39132.0,39115.0,0.15]
[1646583147603,0.20913169,39132.0,39116.0,0.375168]
[1646583147804,0.26,39127.0,39116.0,0.525168]
[1646583148703,0.26,39127.0,39116.0,0.375168]
[1646583148902,0.26,39127.0,39113.0,0.16277]
[1646583148903,0.3,39126.0,39113.0,0.01277]
[1646583149106,0.3,39126.0,39105.0,0.6151]
[1646583149107,0.87154915,39125.0,39105.0,0.6151]
[1646583149305,0.87154915,39125.0,39103.0,0.4779]
[1646583149306,0.385107,39123.0,39103.0,0.4779]
[1646583149505,0.18558139,39115.0,39103.0,0.4779]
[1646583149703,0.728007,39122.0,39095.0,0.195]
[1646583149704,0.3,39114.0,39095.0,0.195]
[1646583149905,1.1,39121.0,39099.0,0.15]
[1646583149906,0.3,39120.0,39099.0,0.15]
[1646583150105,0.0429,39119.0,39099.0,0.15]
[1646583150305,0.3,39118.0,39107.0,0.00021585]
[1646583150509,0.0429,39117.0,39109.0,0.195]
[1646583150710,0.0429,39117.0,39115.0,0.375195]
[1646583150907,0.19446685,39127.0,39115.0,0.375195]
[1646583151104,0.19446685,39127.0,39115.0,0.522395]
[1646583151352,0.21419811,39127.0,39115.0,0.375195]
[1646583151550,0.21419811,39127.0,39117.0,0.1472]
[1646583151749,0.21419811,39127.0,39114.0,0.0001098]
[1646583151750,0.51419811,39127.0,39118.0,0.375155]
[1646583151949,0.25709811,39127.0,39114.0,0.0001098]
[1646583152150,0.3,39126.0,39115.0,0.522387]
[1646583152350,0.25709811,39127.0,39117.0,0.1472]
[1646583152650,0.0429,39127.0,39119.0,0.00010979]
[1646583152853,0.0429,39127.0,39120.0,0.375136]
[1646583153051,0.0429,39127.0,39115.0,0.12430979]
[1646583153250,0.0429,39127.0,39116.0,0.375173]
[1646583153453,0.0429,39127.0,39115.0,0.12430979]
[1646583153454,0.0429,39127.0,39124.0,0.12430979]
[1646583153653,0.002,39133.0,39125.0,0.675081]
[1646583153852,0.69,39152.0,39127.0,0.375044]
[1646583154051,0.69,39152.0,39136.0,0.25]
[1646583154252,0.69,39152.0,39141.0,0.374893]
[1646583154253,0.1998,39150.0,39141.0,0.374893]
[1646583154453,0.1998,39150.0,39132.0,0.15]
[1646583154454,0.1998,39150.0,39144.0,0.374862]
[1646583154651,0.1998,39150.0,39146.0,0.374841]
[1646583154852,0.1998,39150.0,39148.0,0.37482]
[1646583155104,0.0011,39155.0,39143.0,0.12430979]
[1646583155302,0.0011,39155.0,39140.0,0.12430979]
[1646583155303,0.20181323,39155.0,39140.0,0.12430979]
[1646583155505,0.385107,39153.0,39135.0,0.12430979]
[1646583155702,0.3,39152.0,39135.0,0.12430979]
[1646583156104,0.0011,39155.0,39132.0,0.445]
[1646583156304,0.00091326,39152.0,39136.0,0.374945]
[1646583156605,0.00091326,39152.0,39146.0,0.12430979]
[1646583156902,0.00091326,39152.0,39147.0,0.374829]
[1646583157302,0.26,39153.0,39147.0,0.374829]
[1646583157505,0.0011,39155.0,39153.0,0.29397208]
[1646583157702,0.0011,39155.0,39154.0,0.374752]
[1646583158304,0.0011,39155.0,39153.0,0.29397208]
[1646583158955,0.0011,39155.0,39141.0,0.3]
[1646583158956,0.385107,39153.0,39141.0,0.3]
[1646583159157,0.0011,39155.0,39133.0,0.12430979]
[1646583159158,0.0011,39155.0,39139.0,0.12430979]
[1646583159355,0.00238007,39154.0,39142.0,0.12430979]
[1646583159554,0.00238007,39154.0,39149.0,0.12430979]
[1646583159756,0.0011,39155.0,39152.0,0.12430979]
[1646583160055,0.0022,39167.0,39150.0,0.67195178]
[1646583160056,0.00132728,39167.0,39157.0,0.445]
[1646583160256,0.0021,39172.0,39166.0,0.12430979]
[1646583160454,0.0021,39172.0,39170.0,0.12430979]
[1646583160655,0.0021,39172.0,39167.0,0.42430979]
[1646583160854,0.0021,39172.0,39168.0,0.3]
[1646583161055,0.0021,39172.0,39170.0,0.063858]
[1646583161855,0.0021,39172.0,39169.0,0.3]
[1646583162259,0.0021,39172.0,39170.0,0.063857]
[1646583162456,0.0021,39172.0,39171.0,0.67456]
[1646583162718,0.0021,39172.0,39171.0,0.79886979]
[1646583162917,0.0021,39172.0,39171.0,0.42430979]
[1646583163115,0.0021,39172.0,39171.0,0.79886879]
[1646583163320,0.001,39172.0,39171.0,0.79886879]
[1646583163519,0.001,39172.0,39171.0,0.94386879]
[1646583163921,0.001,39172.0,39171.0,0.94386779]
[1646583164122,0.001,39187.0,39172.0,1.1]
[1646583164325,0.001,39187.0,39186.0,0.15857682]
[1646583164625,0.16114109,39202.0,39186.0,0.15857682]
[1646583164626,0.001,39212.0,39189.0,0.195]
[1646583164822,0.001,39212.0,39203.0,0.49850679]
[1646583165022,0.001,39212.0,39203.0,0.42540979]
[1646583165023,0.1987,39206.0,39203.0,0.42540979]
[1646583165221,0.1987,39206.0,39205.0,0.31930979]
[1646583165419,0.001,39212.0,39206.0,0.07045892]
[1646583165622,0.0011,39213.0,39212.0,0.195]
[1646583165824,0.0001,39213.0,39212.0,0.79416739]
[1646583166022,0.03251302,39225.0,39213.0,0.374079]
[1646583166220,0.03251302,39225.0,39208.0,0.12430979]
[1646583166459,0.03251302,39225.0,39209.0,0.737906]
[1646583166655,0.03251302,39225.0,39218.0,0.12430979]
[1646583166854,0.03251302,39225.0,39219.0,0.49832179]
[1646583166855,0.02751302,39225.0,39219.0,0.49832179]
[1646583167053,0.19394248,39225.0,39219.0,0.36705675]
[1646583167254,0.19394248,39225.0,39222.0,0.12430979]